{"text_format":"3","workbook":"xlsx","n_sheets":2,"sheets":["PODACI O RAZVOJU","GRAFIKON RAZVOJA"],"not_rendered":{"charts":1,"defined_names":3},"read":"whole","date_system":"1900"}

{"sheet":"PODACI O RAZVOJU","index":0,"n_rows":23,"n_cols":8,"rows_kept":23,"merged":[[0,1,0,7],[1,2,1,7]]}
[null,"Razvoj bebe "]
[null,"Ime bebe:","Ime"]
[null,"Uzrast","Kilogrami","Grami","Telesna težina (kg)","Telesna težina\nPercentil","Dužina (cm)","Dužina\nPercentil"]
[null,"Na rođenju",7,null,{"$f":"IF(COUNT(Podaci[[#This Row],[Kilogrami]:[Grami]])>0,Podaci[[#This Row],[Kilogrami]]+(Podaci[[#This Row],[Grami]]/16),NA())","v":7},40,19.5,70]
[null,"4 dana",6,8,{"$f":"IF(COUNT(Podaci[[#This Row],[Kilogrami]:[Grami]])>0,Podaci[[#This Row],[Kilogrami]]+(Podaci[[#This Row],[Grami]]/16),NA())","v":6.5},41,19.5,70]
[null,"7 dana",6,4.8,{"$f":"IF(COUNT(Podaci[[#This Row],[Kilogrami]:[Grami]])>0,Podaci[[#This Row],[Kilogrami]]+(Podaci[[#This Row],[Grami]]/16),NA())","v":6.3},42,20,71]
[null,"11 dana",6,9.6,{"$f":"IF(COUNT(Podaci[[#This Row],[Kilogrami]:[Grami]])>0,Podaci[[#This Row],[Kilogrami]]+(Podaci[[#This Row],[Grami]]/16),NA())","v":6.6},43,20,71]
[null,"14 dana",7,null,{"$f":"IF(COUNT(Podaci[[#This Row],[Kilogrami]:[Grami]])>0,Podaci[[#This Row],[Kilogrami]]+(Podaci[[#This Row],[Grami]]/16),NA())","v":7},44,20,71]
[null,"18 dana",7,12,{"$f":"IF(COUNT(Podaci[[#This Row],[Kilogrami]:[Grami]])>0,Podaci[[#This Row],[Kilogrami]]+(Podaci[[#This Row],[Grami]]/16),NA())","v":7.75},45,21,72]
[null,"21 dana",8,8,{"$f":"IF(COUNT(Podaci[[#This Row],[Kilogrami]:[Grami]])>0,Podaci[[#This Row],[Kilogrami]]+(Podaci[[#This Row],[Grami]]/16),NA())","v":8.5},46,21,72]
[null,"25 dana",null,null,{"$f":"IF(COUNT(Podaci[[#This Row],[Kilogrami]:[Grami]])>0,Podaci[[#This Row],[Kilogrami]]+(Podaci[[#This Row],[Grami]]/16),NA())","v":{"$error":"#N/A"}}]
[null,"28 dana",null,null,{"$f":"IF(COUNT(Podaci[[#This Row],[Kilogrami]:[Grami]])>0,Podaci[[#This Row],[Kilogrami]]+(Podaci[[#This Row],[Grami]]/16),NA())","v":{"$error":"#N/A"}}]
[null,"5 sedmica",null,null,{"$f":"IF(COUNT(Podaci[[#This Row],[Kilogrami]:[Grami]])>0,Podaci[[#This Row],[Kilogrami]]+(Podaci[[#This Row],[Grami]]/16),NA())","v":{"$error":"#N/A"}}]
[null,"6 sedmica",null,null,{"$f":"IF(COUNT(Podaci[[#This Row],[Kilogrami]:[Grami]])>0,Podaci[[#This Row],[Kilogrami]]+(Podaci[[#This Row],[Grami]]/16),NA())","v":{"$error":"#N/A"}}]
[null,"7 sedmica",null,null,{"$f":"IF(COUNT(Podaci[[#This Row],[Kilogrami]:[Grami]])>0,Podaci[[#This Row],[Kilogrami]]+(Podaci[[#This Row],[Grami]]/16),NA())","v":{"$error":"#N/A"}}]
[null,"2 meseca",null,null,{"$f":"IF(COUNT(Podaci[[#This Row],[Kilogrami]:[Grami]])>0,Podaci[[#This Row],[Kilogrami]]+(Podaci[[#This Row],[Grami]]/16),NA())","v":{"$error":"#N/A"}}]
[null,"3 meseca",null,null,{"$f":"IF(COUNT(Podaci[[#This Row],[Kilogrami]:[Grami]])>0,Podaci[[#This Row],[Kilogrami]]+(Podaci[[#This Row],[Grami]]/16),NA())","v":{"$error":"#N/A"}}]
[null,"6 meseca",null,null,{"$f":"IF(COUNT(Podaci[[#This Row],[Kilogrami]:[Grami]])>0,Podaci[[#This Row],[Kilogrami]]+(Podaci[[#This Row],[Grami]]/16),NA())","v":{"$error":"#N/A"}}]
[null,"9 meseca",null,null,{"$f":"IF(COUNT(Podaci[[#This Row],[Kilogrami]:[Grami]])>0,Podaci[[#This Row],[Kilogrami]]+(Podaci[[#This Row],[Grami]]/16),NA())","v":{"$error":"#N/A"}}]
[null,"12 meseca",null,null,{"$f":"IF(COUNT(Podaci[[#This Row],[Kilogrami]:[Grami]])>0,Podaci[[#This Row],[Kilogrami]]+(Podaci[[#This Row],[Grami]]/16),NA())","v":{"$error":"#N/A"}}]
[null,"18 meseca",null,null,{"$f":"IF(COUNT(Podaci[[#This Row],[Kilogrami]:[Grami]])>0,Podaci[[#This Row],[Kilogrami]]+(Podaci[[#This Row],[Grami]]/16),NA())","v":{"$error":"#N/A"}}]
[null,"24 meseca",null,null,{"$f":"IF(COUNT(Podaci[[#This Row],[Kilogrami]:[Grami]])>0,Podaci[[#This Row],[Kilogrami]]+(Podaci[[#This Row],[Grami]]/16),NA())","v":{"$error":"#N/A"}}]
[null,"36 meseca",null,null,{"$f":"IF(COUNT(Podaci[[#This Row],[Kilogrami]:[Grami]])>0,Podaci[[#This Row],[Kilogrami]]+(Podaci[[#This Row],[Grami]]/16),NA())","v":{"$error":"#N/A"}}]

{"sheet":"GRAFIKON RAZVOJA","index":1,"n_rows":1,"n_cols":2,"rows_kept":1,"merged":[[0,1,1,1]]}
[null,"GRAFIKON RASTA BEBE"]